fUST/lending_fUST_20250202
["ID","MTS","AMOUNT","RATE_DAILY","PERIOD"]
[351258023,1738487438174,-3000.0,0.0001658,2]
[351258024,1738487438184,-3000.0,0.0001659,2]
[351258025,1738487438194,-3000.0,0.000166,2]
[351258026,1738487438203,-3000.0,0.0001661,2]
[351258027,1738487438213,-3000.0,0.0001662,2]
[351258028,1738487438224,-3000.0,0.0001663,2]
[351258029,1738487438235,-3000.0,0.0001664,2]
[351258030,1738487438245,-3000.0,0.0001665,2]
[351258031,1738487438255,-278.35338786,0.00016657,2]
[351258032,1738487438265,-3000.0,0.0001666,2]
[351258033,1738487438275,-3000.0,0.0001667,2]
[351258034,1738487438292,-3000.0,0.0001668,2]
[351258035,1738487438303,-3000.0,0.0001669,2]
[351258036,1738487438313,-3000.0,0.000167,2]
[351258037,1738487438322,-812.74,0.00016706,2]
[351258038,1738487438332,-500.0,0.00016706,2]
[351258039,1738487438343,-3000.0,0.0001671,2]
[351258040,1738487438353,-114.75816995,0.00016712,2]
[351258041,1738487438379,-385.24183005,0.00016712,2]
[351258042,1738487438391,-500.0,0.00016712,2]
[351258043,1738487438401,-500.0,0.00016712,2]
[351258044,1738487438411,-500.0,0.00016712,2]
[351258045,1738487438422,-500.0,0.00016712,2]
[351258046,1738487438432,-369.01281134,0.00016712,2]
[351258047,1738487438442,-500.0,0.00016712,2]
[351258048,1738487438453,-855.54,0.00016712,2]
[351258049,1738487438463,-1307.87,0.00016712,2]
[351258050,1738487438474,-500.0,0.00016712,2]
[351258051,1738487438484,-500.0,0.00016712,2]
[351258052,1738487438494,-1218.39,0.00016712,2]
[351258053,1738487438504,-500.0,0.00016712,2]
[351258054,1738487438515,-500.0,0.00016712,2]
[351258055,1738487438525,-6651.03,0.00016712,2]
[351258056,1738487438535,-500.0,0.00016712,2]
[351258057,1738487438544,-500.0,0.00016712,2]
[351258058,1738487438554,-500.0,0.00016712,2]
[351258059,1738487438564,-1166.43,0.00016712,2]
[351258060,1738487438574,-500.0,0.00016712,2]
[351258061,1738487438584,-529.74594759,0.00016712,2]
[351258062,1738487438594,-500.0,0.00016712,2]
[351258063,1738487438604,-1129.23,0.00016712,2]
[351258064,1738487438614,-1880.44,0.00016712,2]
[351258065,1738487438624,-567.62,0.00016712,2]
[351258066,1738487438634,-859.06,0.00016712,2]
[351258067,1738487438643,-500.0,0.00016712,2]
[351258068,1738487438654,-500.0,0.00016712,2]
[351258069,1738487438664,-3603.05,0.00016712,2]
[351258070,1738487438674,-9255.87,0.00016712,2]
[351258071,1738487438685,-500.0,0.00016712,2]
[351258072,1738487438695,-500.0,0.00016712,2]
[351258073,1738487438704,-500.0,0.00016712,2]
[351258074,1738487438715,-500.0,0.00016712,2]
[351258075,1738487438726,-706.41,0.00016712,2]
[351258076,1738487438739,-500.0,0.00016712,2]
[351258077,1738487438750,-500.0,0.00016712,2]
[351258078,1738487438761,-3689.510735,0.0001672,2]
[351258079,1738487438771,-812.74,0.00016843,2]
[351258080,1738487438781,-500.0,0.00016843,2]
[351258081,1738487438791,-500.0,0.00016849,2]
[351258082,1738487438801,-207.35106246,0.00016849,2]
[351258083,1738487438811,-500.0,0.00016849,2]
[351258084,1738487438821,-500.0,0.00016849,2]
[351258085,1738487438831,-500.0,0.00016849,2]
[351258086,1738487438841,-500.0,0.00016849,2]
[351258087,1738487438850,-855.54,0.00016849,2]
[351258088,1738487438860,-426.46781543,0.00016849,2]
[351258101,1738487440123,-500.0,0.00016849,2]
[351258102,1738487440134,-174.46647304,0.00016849,2]
[351258103,1738487440144,-1148.64371344,0.00016849,2]
[351258104,1738487440162,-69.74628656,0.00016849,2]
[351258106,1738487440172,-500.0,0.00016849,2]
[351258108,1738487440182,-12.72335216,0.00016849,2]
[351258135,1738487442888,-702.0,0.00016438,2]
[351258142,1738487446727,-424.62,0.00016438,2]
[351258143,1738487446737,-1126.62,0.00016575,2]
[351258144,1738487446747,-1126.62,0.00016712,2]
[351258145,1738487446757,-487.27664784,0.00016849,2]
[351258146,1738487446766,-6651.03,0.00016849,2]
[351258147,1738487446776,-589.60370652,0.00016849,2]
[351258148,1738487446786,-500.0,0.00016849,2]
[351258149,1738487446914,-500.0,0.00016849,2]
[351258150,1738487446924,-1166.43,0.00016849,2]
[351258151,1738487446933,-500.0,0.00016849,2]
[351258152,1738487446943,-1129.23,0.00016849,2]
[351258153,1738487446952,-1880.44,0.00016849,2]
[351258154,1738487446963,-567.62,0.00016849,2]
[351258155,1738487446973,-859.06,0.00016849,2]
[351258156,1738487446983,-500.0,0.00016849,2]
[351258157,1738487446992,-500.0,0.00016849,2]
[351258158,1738487447002,-3603.05,0.00016849,2]
[351258159,1738487447011,-9255.87,0.00016849,2]
[351258160,1738487447021,-500.0,0.00016849,2]
[351258161,1738487447031,-500.0,0.00016849,2]
[351258162,1738487447040,-500.0,0.00016849,2]
[351258163,1738487447049,-500.0,0.00016849,2]
[351258164,1738487447058,-706.41,0.00016849,2]
[351258165,1738487447068,-500.0,0.00016849,2]
[351258166,1738487447077,-500.0,0.00016849,2]
[351258167,1738487447087,-1126.62,0.00016849,2]
[351258168,1738487447096,-278.35338786,0.00016864,2]
[351258169,1738487447105,-812.74,0.0001698,2]
[351258170,1738487447114,-500.0,0.0001698,2]
[351258171,1738487447124,-500.0,0.00016985,2]
[351258172,1738487447133,-195.03595932,0.00016985,2]
[351258173,1738487447142,-500.0,0.00016986,2]
[351258174,1738487447151,-500.0,0.00016986,2]
[351258175,1738487447161,-500.0,0.00016986,2]
[351258176,1738487447170,-500.0,0.00016986,2]
[351258177,1738487447179,-500.0,0.00016986,2]
[351258178,1738487447189,-500.0,0.00016986,2]
[351258179,1738487447198,-1218.39,0.00016986,2]
[351258180,1738487447208,-500.0,0.00016986,2]
[351258181,1738487447217,-500.0,0.00016986,2]
[351258182,1738487447226,-6651.03,0.00016986,2]
[351258183,1738487447235,-500.0,0.00016986,2]
[351258184,1738487447244,-500.0,0.00016986,2]
[351258185,1738487447253,-1166.43,0.00016986,2]
[351258186,1738487447264,-500.0,0.00016986,2]
[351258187,1738487447273,-1129.23,0.00016986,2]
[351258188,1738487447282,-1880.44,0.00016986,2]
[351258189,1738487447291,-567.62,0.00016986,2]
[351258190,1738487447300,-859.06,0.00016986,2]
[351258191,1738487447310,-500.0,0.00016986,2]
[351258192,1738487447319,-500.0,0.00016986,2]
[351258193,1738487447329,-3603.05,0.00016986,2]
[351258194,1738487447338,-9255.87,0.00016986,2]
[351258195,1738487447348,-500.0,0.00016986,2]
[351258196,1738487447358,-500.0,0.00016986,2]
[351258197,1738487447367,-500.0,0.00016986,2]
[351258198,1738487447376,-500.0,0.00016986,2]
[351258199,1738487447385,-706.41,0.00016986,2]
[351258200,1738487447395,-626.5,0.00016986,2]
[351258201,1738487447404,-500.0,0.00016986,2]
[351258202,1738487447413,-1126.62,0.00016986,2]
[351258203,1738487447423,-278.35338786,0.00017071,2]
[351258204,1738487447431,-812.74,0.00017117,2]
[351258205,1738487447441,-500.0,0.00017117,2]
[351258206,1738487447449,-500.0,0.00017123,2]
[351258207,1738487447459,-500.0,0.00017123,2]
[351258208,1738487447467,-500.0,0.00017123,2]
[351258209,1738487447477,-500.0,0.00017123,2]
[351258210,1738487447486,-175.30376296,0.00017123,2]
[351258211,1738487447495,-500.0,0.00017123,2]
[351258212,1738487447504,-1218.39,0.00017123,2]
[351258213,1738487447514,-500.0,0.00017123,2]
[351258214,1738487447523,-500.0,0.00017123,2]
[351258215,1738487447532,-6651.03,0.00017123,2]
[351258216,1738487447541,-500.0,0.00017123,2]
[351258217,1738487447550,-500.0,0.00017123,2]
[351258218,1738487447560,-1166.43,0.00017123,2]
[351258219,1738487447569,-500.0,0.00017123,2]
[351258220,1738487447578,-1129.23,0.00017123,2]
[351258221,1738487447587,-1880.44,0.00017123,2]
[351258222,1738487447596,-567.62,0.00017123,2]
[351258223,1738487447605,-859.06,0.00017123,2]
[351258224,1738487447614,-500.0,0.00017123,2]
[351258225,1738487447623,-500.0,0.00017123,2]
[351258226,1738487447632,-3603.05,0.00017123,2]
[351258227,1738487447641,-9255.87,0.00017123,2]
[351258228,1738487447649,-500.0,0.00017123,2]
[351258229,1738487447658,-500.0,0.00017123,2]
[351258230,1738487447667,-500.0,0.00017123,2]
[351258231,1738487447679,-500.0,0.00017123,2]
[351258232,1738487447688,-706.41,0.00017123,2]
[351258233,1738487447697,-500.0,0.00017123,2]
[351258234,1738487447707,-1126.62,0.00017123,2]
[351258235,1738487447718,-812.74,0.00017254,2]
[351258236,1738487447727,-500.0,0.00017254,2]
[351258237,1738487447737,-527.71,0.0001726,2]
[351258238,1738487447747,-500.0,0.0001726,2]
[351258239,1738487447757,-500.0,0.0001726,2]
[351258240,1738487447767,-500.0,0.0001726,2]
[351258241,1738487447776,-500.0,0.0001726,2]
[351258242,1738487447785,-1218.39,0.0001726,2]
[351258243,1738487447794,-500.0,0.0001726,2]
[351258244,1738487447803,-500.0,0.0001726,2]
[351258245,1738487447812,-3881.13208715,0.0001726,2]
[351258247,1738487713150,1261.62753226,0.00015011,2]
[351258248,1738487892226,1160.5993416,0.00020453,120]
[351258249,1738488070110,4338.63841753,0.00015011,2]
[351258251,1738488112805,174.866169,0.00013973,2]
[351258252,1738488138273,196.88305979,0.00015011,2]
[351258253,1738488168124,260.574837,0.00015011,2]
[351258255,1738488224901,472.08,0.00010959,2]
[351258256,1738488235385,393.4,0.00010959,2]
[351258257,1738488245886,655.67,0.00010959,2]
[351258258,1738488256615,546.39,0.00010959,2]
[351258259,1738488267106,579.51,0.00010959,2]
[351258260,1738488277685,586.4,0.00010959,2]
[351258261,1738488288071,574.91,0.00010959,2]
[351258262,1738488298555,479.09,0.00010959,2]
[351258263,1738488309065,471.1,0.00010959,2]
[351258264,1738488319554,502.38,0.00010959,2]
[351258265,1738488320045,2265.1592428,0.00015011,2]
[351258266,1738488330009,418.65,0.00010959,2]
[351258268,1738488340755,348.87,0.00010959,2]
[351258269,1738488351223,366.97,0.00010959,2]
[351258270,1738488361678,334.69,0.00010959,2]
[351258271,1738488372141,278.91,0.00010959,2]
[351258272,1738488382597,278.91,0.00010959,2]
[351258273,1738488393096,185.94,0.00010959,2]
[351258274,1738488403601,154.95,0.00010959,2]
[351258275,1738488414100,774.78,0.00010959,2]
[351258276,1738488445214,866.44,0.00010959,2]
[351258289,1738488561176,-490.0,0.00015089,2]
[351258293,1738488589680,154062.35325009,0.00015011,2]
[351258406,1738488640378,-148.51848901,0.00015089,2]
[351258407,1738488640388,-500.0,0.00015342,2]
[351258408,1738488640398,-300.0,0.00015999,2]
[351258409,1738488640407,-2052.14151099,0.00016,2]
[351258412,1738488640668,-5338.4091636,0.00016,2]
[351258417,1738488643203,-615.26264031,0.00016,2]
[351258426,1738489228116,175.172374,0.00013973,2]
[351258430,1738489755548,250.0,0.00014915,2]
[351258477,1738489832467,-500.0,0.00015342,2]
[351258478,1738489832477,-300.0,0.0001552,2]
[351258479,1738489832486,-838.97718917,0.00015521,2]
[351258489,1738489838267,-781.27293045,0.00015521,2]
[351258527,1738489843362,-10385.08683889,0.00015521,2]
[351258528,1738489843417,-494.18,0.00015521,2]
[351258568,1738489846259,-12400.48304149,0.00015521,2]
[351258570,1738489846269,-13048.91373056,0.00015705,2]
[351258572,1738489846278,-662.55308039,0.000158,2]
[351258574,1738489846287,-151.0,0.000159,2]
[351258576,1738489846296,-3219.73755931,0.00016,2]
[351258578,1738489846305,-5000.0,0.00016,2]
[351258580,1738489846314,-662.55308037,0.000161,2]
[351258582,1738489846324,-662.55308037,0.000164,2]
[351258584,1738489846333,-500.0,0.00016438,2]
[351258586,1738489846342,-500.0,0.00016438,2]
[351258588,1738489846352,-500.0,0.00016438,2]
[351258589,1738489846361,-500.0,0.00016438,2]
[351258591,1738489846370,-1228.11,0.00016438,2]
[351258593,1738489846379,-500.0,0.00016438,2]
[351258595,1738489846387,-500.0,0.00016438,2]
[351258597,1738489846396,-500.0,0.00016438,2]
[351258599,1738489846405,-500.0,0.00016438,2]
[351258601,1738489846415,-565.83,0.00016438,2]
[351258603,1738489846424,-1953.77,0.00016438,2]
[351258604,1738489846434,-500.0,0.00016438,2]
[351258606,1738489846444,-500.0,0.00016438,2]
[351258608,1738489846453,-902.35,0.00016438,2]
[351258610,1738489846463,-279.29041085,0.00016438,2]
[351258612,1738489846472,-801.18,0.00016438,2]
[351258614,1738489846481,-500.0,0.00016438,7]
[351258616,1738489846490,-500.0,0.00016438,2]
[351258618,1738489846500,-727.11,0.00016438,2]
[351258620,1738489846512,-500.0,0.00016438,2]
[351258622,1738489846522,-500.0,0.00016438,2]
[351258624,1738489846531,-875.67,0.00016438,2]
[351258626,1738489846541,-500.0,0.00016438,2]
[351258628,1738489846553,-1307.0,0.00016438,2]
[351258630,1738489846563,-500.0,0.00016438,2]
[351258632,1738489846572,-503.85214754,0.00016438,2]
[351258634,1738489846582,-500.0,0.00016438,2]
[351258636,1738489846591,-500.0,0.00016438,2]
[351258638,1738489846600,-500.0,0.00016438,2]
[351258640,1738489846610,-1137.69,0.00016438,2]
[351258642,1738489846619,-10000.0,0.00016438,2]
[351258644,1738489846629,-151.0,0.000165,2]
[351258646,1738489846638,-5000.0,0.000165,2]
[351258648,1738489846647,-1364.170995,0.0001655,2]
[351258650,1738489846657,-500.0,0.00016565,2]
[351258652,1738489846667,-500.0,0.00016565,2]
[351258653,1738489846676,-500.0,0.00016565,2]
[351258656,1738489846687,-517.53386027,0.00016565,2]
[351258657,1738489846697,-251.69154954,0.00016565,2]
[351258659,1738489846707,-500.0,0.00016566,2]
[351258661,1738489846716,-500.0,0.00016566,2]
[351258663,1738489846726,-186.29873438,0.00016566,2]
[351258665,1738489846735,-500.0,0.00016566,2]
[351258667,1738489846744,-500.0,0.00016566,2]
[351258669,1738489846754,-500.0,0.00016566,2]
[351258671,1738489846763,-500.0,0.00016566,2]
[351258673,1738489846772,-500.0,0.00016566,2]
[351258675,1738489846783,-500.0,0.00016566,2]
[351258677,1738489846792,-269.08368209,0.00016566,2]
[351258700,1738490095519,175.010794,0.00013973,2]
[351258701,1738490193761,233.122321,0.00013699,2]
[351258704,1738490932711,174.42744,0.00013973,2]
[351258777,1738491038469,-500.0,0.00015342,2]
[351258778,1738491038479,-300.0,0.00015424,2]
[351258779,1738491038488,-12639.6277084,0.00015425,2]
[351258780,1738491038497,-13255.3373504,0.00016289,2]
[351258781,1738491038507,-3000.0,0.000164,2]
[351258782,1738491038516,-3000.0,0.0001641,2]
[351258783,1738491038525,-3000.0,0.0001642,2]
[351258784,1738491038535,-3000.0,0.0001643,2]
[351258785,1738491038544,-500.0,0.00016438,2]
[351258786,1738491038554,-500.0,0.00016438,2]
[351258787,1738491038564,-433.98394878,0.00016438,2]
[351258788,1738491038573,-405.25053296,0.00016438,2]
[351258789,1738491038583,-500.0,0.00016438,2]
[351258790,1738491038594,-500.0,0.00016438,2]
[351258791,1738491038603,-500.0,0.00016438,2]
[351258792,1738491038613,-500.0,0.00016438,2]
[351258793,1738491038622,-500.0,0.00016438,2]
[351258794,1738491038632,-500.0,0.00016438,2]
[351258795,1738491038641,-229.909298,0.00016438,2]
[351258796,1738491038650,-500.0,0.00016438,2]
[351258797,1738491038659,-230.91631791,0.00016438,2]
[351258798,1738491038669,-500.0,0.00016438,2]
[351258799,1738491038679,-500.0,0.00016438,2]
[351258800,1738491038689,-518.86564882,0.00016438,2]
[351258801,1738491038699,-500.0,0.00016438,2]
[351258802,1738491038709,-500.0,0.00016438,2]
[351258803,1738491038719,-500.0,0.00016438,2]
[351258804,1738491038729,-502.36238528,0.00016438,2]
[351258805,1738491038738,-500.0,0.00016438,2]
[351258806,1738491038748,-500.0,0.00016438,2]
[351258807,1738491038758,-500.0,0.00016438,2]
[351258808,1738491038767,-500.0,0.00016438,2]
[351258809,1738491038777,-500.0,0.00016438,2]
[351258810,1738491038787,-500.0,0.00016438,2]
[351258811,1738491038796,-500.0,0.00016438,2]
[351258812,1738491038806,-500.0,0.00016438,2]
[351258813,1738491038816,-500.0,0.00016438,2]
[351258814,1738491038826,-151.0,0.00016438,2]
[351258815,1738491038835,-449.46208928,0.00016438,2]
[351258816,1738491038845,-47.60704453,0.00016438,2]
[351258832,1738491043517,-103.39295547,0.00016438,2]
[351258833,1738491043526,-151.0,0.00016438,2]
[351258834,1738491043536,-151.0,0.00016438,2]
[351258835,1738491043546,-500.0,0.00016438,2]
[351258836,1738491043556,-500.0,0.00016438,2]
[351258837,1738491043566,-500.0,0.00016438,2]
[351258838,1738491043575,-500.0,0.00016438,2]
[351258839,1738491043585,-500.0,0.00016438,2]
[351258840,1738491043595,-500.0,0.00016438,2]
[351258841,1738491043604,-500.0,0.00016438,2]
[351258842,1738491043614,-500.0,0.00016438,2]
[351258843,1738491043623,-500.0,0.00016438,2]
[351258844,1738491043633,-1127.9,0.00016438,2]
[351258845,1738491043643,-500.0,0.00016438,2]
[351258846,1738491043651,-500.0,0.00016438,2]
[351258847,1738491043660,-500.0,0.00016438,2]
[351258848,1738491043669,-500.0,0.00016438,2]
[351258849,1738491043679,-151.0,0.00016438,2]
[351258850,1738491043689,-500.0,0.00016438,2]
[351258851,1738491043699,-500.0,0.00016438,2]
[351258852,1738491043709,-500.0,0.00016438,2]
[351258853,1738491043718,-500.0,0.00016438,2]
[351258854,1738491043728,-501.92441151,0.00016438,2]
[351258855,1738491043738,-500.0,0.00016438,2]
[351258856,1738491043748,-500.0,0.00016438,2]
[351258857,1738491043757,-500.0,0.00016438,2]
[351258858,1738491043767,-500.0,0.00016438,2]
[351258859,1738491043777,-500.0,0.00016438,2]
[351258860,1738491043787,-500.0,0.00016438,2]
[351258861,1738491043797,-500.0,0.00016438,2]
[351258862,1738491043806,-500.0,0.00016438,2]
[351258863,1738491043815,-500.0,0.00016438,2]
[351258864,1738491043824,-500.0,0.00016438,2]
[351258865,1738491043833,-500.0,0.00016438,2]
[351258866,1738491043842,-500.0,0.00016438,2]
[351258867,1738491043851,-517.54206974,0.00016438,2]
[351258868,1738491043861,-301.693565,0.00016438,2]
[351258869,1738491043870,-500.0,0.00016438,2]
[351258870,1738491043882,-500.0,0.00016438,2]
[351258871,1738491043892,-500.0,0.00016438,2]
[351258872,1738491043902,-500.0,0.00016438,2]
[351258873,1738491043911,-500.0,0.00016438,2]
[351258874,1738491043922,-500.0,0.00016438,2]
[351258875,1738491043931,-542.25,0.00016438,2]
[351258876,1738491043941,-162.09244203,0.00016438,2]
[351258877,1738491043950,-767.8,0.00016438,2]
[351258878,1738491043960,-500.0,0.00016438,2]
[351258879,1738491043970,-500.0,0.00016438,2]
[351258880,1738491043979,-500.0,0.00016438,2]
[351258881,1738491043989,-500.0,0.00016438,2]
[351258882,1738491043999,-500.0,0.00016438,2]
[351258883,1738491044008,-635.00070689,0.00016438,2]
[351258884,1738491044018,-500.0,0.00016438,2]
[351258885,1738491044028,-1872.36,0.00016438,2]
[351258886,1738491044038,-151.0,0.00016438,2]
[351258887,1738491044048,-226.60265583,0.00016438,2]
[351258888,1738491044057,-500.0,0.00016438,2]
[351258889,1738491044067,-500.0,0.00016438,2]
[351258890,1738491044076,-500.0,0.00016438,2]
[351258891,1738491044086,-696.81,0.00016438,2]
[351258892,1738491044096,-500.0,0.00016438,2]
[351258893,1738491044105,-246.24229999,0.00016438,2]
[351258894,1738491044115,-1138.53,0.00016438,2]
[351258895,1738491044124,-3560.43,0.00016438,2]
[351258896,1738491044134,-500.0,0.00016438,2]
[351258897,1738491044143,-500.0,0.00016438,2]
[351258898,1738491044253,-839.18,0.00016438,2]
[351258899,1738491044263,-864.75,0.00016438,2]
[351258900,1738491044273,-502.75302765,0.00016438,2]
[351258901,1738491044283,-500.0,0.00016438,2]
[351258902,1738491044293,-1252.54,0.00016438,2]
[351258903,1738491044302,-500.0,0.00016438,2]
[351258904,1738491044312,-500.0,0.00016438,2]
[351258905,1738491044321,-500.0,0.00016438,2]
[351258906,1738491044331,-500.0,0.00016438,2]
[351258907,1738491044340,-500.0,0.00016438,2]
[351258908,1738491044349,-500.0,0.00016438,2]
[351258909,1738491044359,-201.096028,0.00016438,2]
[351258910,1738491044368,-201.096028,0.00016438,2]
[351258911,1738491044377,-201.096028,0.00016438,2]
[351258912,1738491044386,-201.096028,0.00016438,2]
[351258913,1738491044395,-500.0,0.00016438,2]
[351258914,1738491044405,-500.0,0.00016438,2]
[351258915,1738491044415,-1090.29,0.00016438,2]
[351258916,1738491044424,-500.0,0.00016438,2]
[351258917,1738491044433,-9158.1,0.00016438,2]
[351258918,1738491044443,-6734.22,0.00016438,2]
[351258919,1738491044453,-500.0,0.00016438,2]
[351258920,1738491044463,-500.0,0.00016438,2]
[351258921,1738491044473,-500.0,0.00016438,2]
[351258922,1738491044483,-500.0,0.00016438,2]
[351258923,1738491044492,-3000.0,0.0001644,2]
[351258924,1738491044502,-3000.0,0.0001645,2]
[351258925,1738491044512,-151.0,0.0001645,2]
[351258926,1738491044522,-3000.0,0.0001646,2]
[351258927,1738491044533,-3000.0,0.0001647,2]
[351258928,1738491044543,-3000.0,0.0001648,2]
[351258929,1738491044552,-151.0,0.0001648,2]
[351258930,1738491044561,-201.096028,0.0001648,2]
[351258931,1738491044571,-201.096028,0.0001648,2]
[351258932,1738491044580,-3000.0,0.0001649,2]
[351258933,1738491044590,-151.0,0.0001649,2]
[351258934,1738491044599,-151.0,0.0001649,2]
[351258935,1738491044609,-151.0,0.0001649,2]
[351258936,1738491044618,-4906.31,0.000165,2]
[351258937,1738491044628,-3000.0,0.000165,2]
[351258938,1738491044637,-151.0,0.000165,2]
[351258939,1738491044646,-10979.0,0.000165,2]
[351258940,1738491044656,-3000.0,0.0001651,2]
[351258941,1738491044666,-3000.0,0.0001652,2]
[351258942,1738491044676,-3000.0,0.0001653,2]
[351258943,1738491044685,-201.096028,0.0001653,2]
[351258944,1738491044695,-201.096028,0.0001653,2]
[351258945,1738491044705,-3000.0,0.0001654,2]
[351258946,1738491044715,-234.093354,0.0001654,2]
[351258947,1738491044724,-3000.0,0.0001655,2]
[351258948,1738491044735,-3000.0,0.0001656,2]
[351258949,1738491044744,-151.0,0.0001656,2]
[351258950,1738491044754,-151.0,0.0001656,2]
[351258951,1738491044764,-151.0,0.0001656,2]
[351258952,1738491044774,-500.0,0.00016566,2]
[351258953,1738491044784,-500.0,0.00016566,2]
[351258954,1738491044793,-500.0,0.00016566,2]
[351258955,1738491044805,-501.79114185,0.00016566,2]
[351258956,1738491044815,-500.0,0.00016566,2]
[351258957,1738491044825,-494.95366369,0.00016566,2]
[351258958,1738491044835,-500.0,0.00016566,2]
[351258959,1738491044844,-500.0,0.00016566,2]
[351258960,1738491044854,-500.0,0.00016566,2]
[351258961,1738491044864,-500.0,0.00016566,2]
[351258962,1738491044874,-500.0,0.00016566,2]
[351258963,1738491044887,-151.0,0.00016567,2]
[351258964,1738491044896,-3000.0,0.0001657,2]
[351258965,1738491044907,-173.679607,0.00016575,2]
[351258966,1738491044916,-500.0,0.00016575,2]
[351258967,1738491044926,-500.0,0.00016575,2]
[351258968,1738491044935,-500.0,0.00016575,2]
[351258969,1738491044945,-500.0,0.00016575,2]
[351258970,1738491044955,-500.0,0.00016575,2]
[351258971,1738491044966,-345.70347217,0.00016575,2]
[351258972,1738491044976,-500.0,0.00016575,2]
[351258973,1738491044985,-500.0,0.00016575,2]
[351258974,1738491044995,-500.0,0.00016575,2]
[351258975,1738491045004,-500.0,0.00016575,2]
[351258976,1738491045014,-151.0,0.00016575,2]
[351258977,1738491045023,-151.0,0.00016575,2]
[351258978,1738491045032,-151.345596,0.00016575,2]
[351258979,1738491045042,-500.0,0.00016575,2]
[351258980,1738491045051,-500.0,0.00016575,2]
[351258981,1738491045062,-1127.9,0.00016575,2]
[351258982,1738491045072,-500.0,0.00016575,2]
[351258983,1738491045082,-216.437502,0.00016575,2]
[351258984,1738491045091,-500.0,0.00016575,2]
[351258985,1738491045101,-645.40132384,0.00016575,2]
[351258986,1738491045111,-500.0,0.00016575,2]
[351258987,1738491045120,-500.0,0.00016575,2]
[351258988,1738491045129,-500.0,0.00016575,2]
[351258989,1738491045142,-500.0,0.00016575,2]
[351258990,1738491045151,-500.0,0.00016575,2]
[351258991,1738491045160,-542.25,0.00016575,2]
[351258992,1738491045170,-767.8,0.00016575,2]
[351258993,1738491045180,-500.0,0.00016575,2]
[351258994,1738491045189,-500.0,0.00016575,2]
[351258995,1738491045199,-1872.36,0.00016575,2]
[351258996,1738491045208,-500.0,0.00016575,2]
[351258997,1738491045218,-696.81,0.00016575,2]
[351258998,1738491045227,-1138.53,0.00016575,2]
[351258999,1738491045237,-3560.43,0.00016575,2]
[351259000,1738491045246,-500.0,0.00016575,2]
[351259001,1738491045255,-839.18,0.00016575,2]
[351259002,1738491045264,-864.75,0.00016575,2]
[351259003,1738491045274,-1252.54,0.00016575,2]
[351259004,1738491045283,-500.0,0.00016575,2]
[351259005,1738491045292,-500.0,0.00016575,2]
[351259006,1738491045301,-500.0,0.00016575,2]
[351259007,1738491045311,-500.0,0.00016575,2]
[351259008,1738491045320,-201.096028,0.00016575,2]
[351259009,1738491045329,-201.096028,0.00016575,2]
[351259010,1738491045338,-201.096028,0.00016575,2]
[351259011,1738491045347,-201.096028,0.00016575,2]